[Event "7th Summer Cup 2024"]
[Site "Rhodes"]
[Date "2024.06.27"]
[Round "6.2"]
[White "Nasuta, Grzegorz"]
[Black "Papasimakopoulos, Alexandros"]
[Result "1-0"]
[ECO "B07"]
[WhiteElo "2541"]
[BlackElo "2375"]
[Annotator "TA"]
[PlyCount "59"]
[EventDate "2024.06.21"]
[EventType "swiss"]
[EventCountry "GRE"]
[SourceTitle "playchess.com"]
[Source "ChessBase"]
[SourceQuality "1"]
[TimeControl "40/5400+30:900+30"]

{[%evp 9,59,40,39,45,54,22,50,54,66,47,45,52,118,58,67,57,73,74,139,137,133,143,231,238,739,734,720,333,510,529,968,940,1056,898,1210,1166,1302,1318,1299,1317,1293,1295,1181,1083,1132,1108,1177,1154,1326,1323,1312,1271]} 1. e4 {[%emt 0:00:54]} Nc6 {[%emt 0:05:44]} 2. Nc3 {[%emt 0:01:59]} Nf6 {[%emt 0:00:52]} 3. d4 {[%emt 0:13:49][%cal Bd2d4,Bd4d5][%mdl 32]} d6 {[%emt 0:00:06]} 4. Nge2 {[%emt 0:10:35]} e5 {[%emt 0:01:45]} 5. f3 {[%emt 0:02:04]} a6 {[%emt 0:05:04]} 6. Be3 {[%emt 0:04:48]} Be7 {[%emt 0:01:22]} 7. Qd2 {[%emt 0:09:43]} O-O {[%emt 0:05:30]} 8. d5 {[%emt 0:04:48] White is slightly better.} Na5 {[%emt 0:00:34]} 9. Ng3 {[%emt 0:01:07] Black must now prevent b4.} c5 {[%emt 0:00:29]} 10. a3 {[%emt 0:12:26]} Qc7 {[%emt 0:02:21]} (10... b5 $14) 11. Be2 {[%emt 0:02:04]} ({White should play} 11. b4 $16) 11... b5 $14 {[%emt 0:00:19]} 12. O-O {[%emt 0:01:00]} Rb8 {[%emt 0:08:42]} 13. b3 {[%emt 0:01:55] White is more active. White now steadily converts the win.} g6 {[%emt 0:01:42]} (13... Nb7 $142) 14. Bh6 $16 {[%emt 0:03:29]} Re8 {[%emt 0:00:07]} 15. f4 {[%emt 0:00:29] Hoping for fxe5.} Nd7 {[%emt 0:01:54]} (15... Nb7 $16 16. f5 Kh8) 16. f5 $18 {[%emt 0:01:52]} f6 $2 {[%emt 0:07:18]} (16... Qd8 17. Qe3 Nf6) 17. fxg6 {[%emt 0:22:43]} hxg6 {[%emt 0:00:02] Black is weak on the light squares} 18. Bg4 {[%emt 0:00:23]} (18. Nh5 $142 {[%cal Oh6g7] Threatens to win with Bg7!} Qd8 19. Bg7 (19. Ng7 Nb6 $18) 19... Nxb3 20. Qh6 (20. cxb3 Bb7 $18)) 18... Kh7 {[%emt 0:05:22] [#]} (18... Nf8 {might work better.}) 19. Nf5 $1 {[%emt 0:01:11][%mdl 512] White is clearly winning.} Bf8 {[%emt 0:02:24] [#] Inhibits Bg7.} (19... Nf8 20. Bg7) 20. Rf3 $1 {[%emt 0:00:41]} Kg8 {[%emt 0:00:50][%cal Bh7g8,Bg8g7,Bg7f7][%mdl 32] [#]} (20... c4 21. b4) 21. Raf1 $1 {[%emt 0:00:52]} b4 {[%emt 0:09:13]} (21... c4 22. b4) 22. Bxf8 {[%emt 0:01:22]} gxf5 {[%emt 0:00:37]} 23. Bxf5 {[%emt 0:00:22][%cal Od2h6] Intending Qh6! and mate.} Nxf8 {[%emt 0:00:24]} 24. Rg3+ {[%emt 0:00:15]} Qg7 {[%emt 0:01:42]} 25. Rxg7+ {[%emt 0:00:06]} Kxg7 {[%emt 0:00:04]} 26. axb4 {[%emt 0:00:10]} Bxf5 {[%emt 0:00:13]} 27. Rxf5 {[%emt 0:01:09]} cxb4 {[%emt 0:00:57]} 28. Ne2 {[%emt 0:00:02] Ng3 is the strong threat.} Nd7 {[%emt 0:00:41]} 29. Ng3 {[%emt 0:00:31] Nh5+ would kill now.} Kf7 {[%emt 0:01:19]} 30. Rh5 {[%emt 0:00:05] Weighted Error Value: White=0.37/Black=0.49.  Mistake:       	White=1     	Black=4      Inaccurate:     	White=1     	Black=2      OK:         	White=5     	Black=4      Best:        	White=3     	---} 1-0

[Event "7th Summer Cup 2024"]
[Site "Rhodes"]
[Date "2024.06.27"]
[Round "6.3"]
[White "Ladopoulos, Dimitrios"]
[Black "Budisavljevic, Luka"]
[Result "1/2-1/2"]
[ECO "A31"]
[WhiteElo "2374"]
[BlackElo "2468"]
[Annotator "TA"]
[PlyCount "114"]
[EventDate "2024.06.21"]
[EventType "swiss"]
[EventCountry "GRE"]
[SourceTitle "playchess.com"]
[Source "ChessBase"]
[SourceQuality "1"]
[TimeControl "40/5400+30:900+30"]

{[%evp 9,114,0,22,7,8,12,16,19,25,0,0,0,18,0,0,0,0,0,0,0,1,5,5,0,0,0,0,0,0,0,2,0,0,0,4,3,0,0,0,0,0,0,0,0,0,0,0,0,0,0,0,0,0,0,0,-8,-8,-8,-8,-8,0,0,0,0,0,0,0,0,0,0,0,0,0,0,0,0,0,0,0,0,0,-8,0,-8,-8,-8,-8,-8,0,0,0,0,0,0,0,0,0,0,0,0,0,0,0,0,0,0,0]} 1. Nf3 {[%emt 0:07:05]} Nf6 {[%emt 0:04:17]} 2. d4 {[%emt 0:02:44]} c5 {[%emt 0:00:19]} 3. c4 {[%emt 0:04:55]} cxd4 {[%emt 0:00:34]} 4. Nxd4 {[%emt 0:00:05]} Nc6 {[%emt 0:00:21]} 5. g3 {[%emt 0:06:33]} Qb6 {[%emt 0:00:05]} 6. e3 {[%emt 0:08:55]} e6 {[%emt 0:09:10]} 7. Bg2 {[%emt 0:02:23]} d5 {[%emt 0:06:22]} 8. cxd5 {[%emt 0:04:34]} Bb4+ {[%emt 0:05:15]} 9. Bd2 {[%emt 0:09:24]} Nxd4 {[%emt 0:11:20] The position is equal.} 10. exd4 {[%emt 0:00:41]} Nxd5 {[%emt 0:05:10]} 11. Nc3 {[%emt 0:06:29]} Qxd4 {[%emt 0:19:52]} 12. Nxd5 {[%emt 0:01:42]} Bxd2+ {[%emt 0:00:09]} 13. Qxd2 {[%emt 0:00:05]} Qxd2+ {[%emt 0:00:03]} 14. Kxd2 {[%emt 0:00:07]} exd5 {[%emt 0:00:02]} 15. Bxd5 {[%emt 0:00:53]} O-O {[%emt 0:02:25] [#] Threatens to win with ...Rd8.} 16. Kc3 {[%emt 0:04:51]} Be6 {[%emt 0:02:37]} 17. Bxe6 {[%emt 0:02:11]} fxe6 $11 {[%emt 0:00:01][%mdl 4096] Endgame. KRR-KRR} 18. f4 {[%emt 0:00:09]} Rac8+ {[%emt 0:00:08]} 19. Kb3 {[%emt 0:00:09]} Rf5 {[%emt 0:06:28]} 20. Rac1 {[%emt 0:01:18]} Rb5+ {[%emt 0:00:04]} 21. Ka3 {[%emt 0:00:14]} Rbc5 {[%emt 0:00:02]} 22. Rxc5 {[%emt 0:03:07]} Rxc5 {[%emt 0:00:03] KR-KR} 23. Rd1 {[%emt 0:01:07]} Rc7 {[%emt 0:00:02]} 24. Rd8+ {[%emt 0:05:00]} Kf7 {[%emt 0:01:46]} 25. Ra8 {[%emt 0:01:55]} a6 {[%emt 0:06:22]} 26. Kb3 {[%emt 0:02:58]} h6 {[%emt 0:01:51]} 27. Rh8 {[%emt 0:02:49]} Kg6 {[%emt 0:01:44]} 28. Rf8 {[%emt 0:00:52]} Rc1 {[%emt 0:05:10]} 29. Rb8 {[%emt 0:00:51]} Rc7 {[%emt 0:00:56]} 30. Rf8 {[%emt 0:00:08]} h5 {[%emt 0:00:14]} 31. a3 {[%emt 0:00:50]} Rc1 {[%emt 0:00:20]} 32. Rb8 {[%emt 0:00:21]} Rh1 {[%emt 0:08:21]} 33. Rxb7 {[%emt 0:02:33]} Rxh2 {[%emt 0:00:01]} 34. Rb6 {[%emt 0:00:07]} Kf6 {[%emt 0:00:20]} 35. Ka4 {[%emt 0:02:09][%cal Ob2b4]} Rh3 {[%emt 0:01:27]} 36. Rxa6 {[%emt 0:07:16] [#] aiming for Ra8.} Rxg3 {[%emt 0:00:02]} 37. b4 {[%emt 0:00:06]} h4 {[%emt 0:00:08] White must now prevent ...h3.} 38. Ra8 {[%emt 0:00:39]} Rg6 {[%emt 0:02:07] And now ...h3 would win.} 39. b5 {[%emt 0:03:37] Strongly threatening b6.} h3 {[%emt 0:00:05] ...h2 is the strong threat.} 40. Rh8 {[%emt 0:00:00]} (40. b6 $5 h2 $8 41. Rh8 $15) 40... Rh6 {[%emt 0:00:00]} 41. Rxh6+ {[%emt 0:01:48]} gxh6 {[%emt 0:00:16] K3P-K3P} 42. b6 {[%emt 0:00:36]} h2 {[%emt 0:00:04]} (42... Ke7 $5 43. b7 $8 h2 $11) 43. b7 {[%emt 0:00:12]} h1=Q {[%emt 0:00:07]} (43... h1=R 44. b8=Q (44. b8=R Re1 $11) 44... Kg6 45. Qe5 $18) 44. b8=Q {[%emt 0:00:07] KQ-KQ} Qd1+ {[%emt 0:05:09]} 45. Ka5 {[%emt 0:01:05]} Qd2+ {[%emt 0:00:37]} 46. Ka4 {[%emt 0:05:48]} Qc2+ {[%emt 0:00:06]} 47. Ka5 $1 {[%emt 0:00:47]} Qc5+ {[%emt 0:00:10]} 48. Ka4 {[%emt 0:00:07]} Kf5 {[%emt 0:01:29]} 49. Qb1+ {[%emt 0:04:59]} Kf6 {[%emt 0:00:23] ( -> ...Qa7+)} 50. Qb4 {[%emt 0:04:58]} Qa7+ {[%emt 0:02:05]} 51. Kb3 {[%emt 0:01:04]} h5 {[%emt 0:00:35]} 52. a4 {[%emt 0:01:55]} Qe3+ {[%emt 0:02:06]} 53. Kc2 {[%emt 0:01:01] Qf8+ would now be deadly.} Qf2+ {[%emt 0:00:30]} (53... h4 $5) 54. Kd3 {[%emt 0:00:42]} Qf3+ {[%emt 0:01:16]} 55. Kd2 {[%emt 0:00:10]} Qf2+ {[%emt 0:00:42]} 56. Kd3 {[%emt 0:00:06]} Qg3+ {[%emt 0:00:23]} 57. Ke2 {[%emt 0:00:43] Intending Qf8+ and mate.} Qg2+ {[%emt 0:00:11] A balanced but interesting game.   Weighted Error Value: White=0.02 (flawless) /Black=0.01 (flawless) .  OK:         	White=26    	Black=24     Best:        	White=6     	Black=2      Strong:       	White=1     	---} 1/2-1/2

[Event "7th Summer Cup 2024"]
[Site "Rhodes"]
[Date "2024.06.27"]
[Round "6.4"]
[White "Sibashvili, Giorgi"]
[Black "Mostbauer, Florian"]
[Result "0-1"]
[ECO "A11"]
[WhiteElo "2423"]
[BlackElo "2324"]
[Annotator "RC"]
[PlyCount "64"]
[EventDate "2024.06.21"]
[EventType "swiss"]
[EventCountry "GRE"]
[SourceTitle "playchess.com"]
[Source "ChessBase"]
[SourceQuality "1"]
[TimeControl "40/5400+30:900+30"]

1. c4 {[%emt 0:02:05]} c6 {[%emt 0:00:11]} 2. g3 {[%emt 0:00:46]} d5 {[%emt 0:00:14]} 3. Nf3 {[%emt 0:00:11]} Bg4 {[%emt 0:00:19]} 4. Ne5 {[%emt 0:03:53]} Be6 {[%emt 0:00:16]} 5. d4 {[%emt 0:01:05]} Nd7 {[%emt 0:00:24]} 6. cxd5 {[%emt 0:01:55]} Bxd5 {[%emt 0:00:21]} 7. f3 {[%emt 0:00:27]} Nxe5 {[%emt 0:00:13]} 8. dxe5 {[%emt 0:00:05]} g6 {[%emt 0:00:15]} 9. Nc3 {[%emt 0:07:17]} Be6 {[%emt 0:00:27]} 10. Qxd8+ {[%emt 0:01:17]} Rxd8 {[%emt 0:02:26]} 11. e4 {[%emt 0:01:13]} Bg7 {[%emt 0:05:53]} 12. f4 {[%emt 0:00:17]} f6 {[%emt 0:01:29]} 13. exf6 {[%emt 0:00:33]} Nxf6 {[%emt 0:00:39]} 14. Be3 {[%emt 0:01:10]} b6 {[%emt 0:06:02]} 15. h3 {[%emt 0:18:54]} O-O {[%emt 0:08:52]} 16. g4 {[%emt 0:00:40]} Ne8 {[%emt 0:15:00]} 17. Bg2 {[%emt 0:19:36]} Rd3 {[%emt 0:12:21]} 18. Kf2 {[%emt 0:11:50]} Nd6 {[%emt 0:13:35]} 19. Rhe1 {[%emt 0:21:43]} Nc4 {[%emt 0:06:08]} 20. Bc1 {[%emt 0:00:07]} Nxb2 {[%emt 0:03:08]} 21. Bxb2 {[%emt 0:00:32]} Bxc3 {[%emt 0:00:36]} 22. Bxc3 {[%emt 0:00:43]} Rxf4+ {[%emt 0:00:45]} 23. Kg1 {[%emt 0:00:29]} Rxc3 {[%emt 0:00:09]} 24. Rac1 {[%emt 0:00:18]} Rxc1 {[%emt 0:01:16]} 25. Rxc1 {[%emt 0:00:05]} c5 {[%emt 0:00:36]} 26. a4 {[%emt 0:00:11]} c4 {[%emt 0:04:01]} 27. Rb1 {[%emt 0:00:45]} Rf8 {[%emt 0:01:44]} 28. a5 {[%emt 0:00:16]} bxa5 {[%emt 0:00:58]} 29. e5 {[%emt 0:00:21]} c3 {[%emt 0:01:46]} 30. Be4 {[%emt 0:00:16]} Rf4 {[%emt 0:00:27]} 31. Bc2 {[%emt 0:00:11]} a4 {[%emt 0:02:31]} 32. Rb7 {[%emt 0:00:27]} Bb3 {[%emt 0:01:07]} 0-1

[Event "7th Summer Cup 2024"]
[Site "Rhodes"]
[Date "2024.06.27"]
[Round "6.5"]
[White "Sandalakis, Nikolaos"]
[Black "Rigopoulos-Tsigkos, Alexandros"]
[Result "1-0"]
[ECO "B42"]
[WhiteElo "2229"]
[BlackElo "2039"]
[Annotator "RC"]
[PlyCount "65"]
[EventDate "2024.06.21"]
[EventType "swiss"]
[EventCountry "GRE"]
[SourceTitle "playchess.com"]
[Source "ChessBase"]
[SourceQuality "1"]
[TimeControl "40/5400+30:900+30"]

1. e4 {[%emt 0:00:04]} c5 {[%emt 0:06:34]} 2. Nf3 {[%emt 0:00:12]} e6 {[%emt 0:00:10]} 3. d4 {[%emt 0:00:10]} cxd4 {[%emt 0:00:05]} 4. Nxd4 {[%emt 0:00:05]} a6 {[%emt 0:00:05]} 5. Bd3 {[%emt 0:00:22]} Bc5 {[%emt 0:00:08]} 6. Nb3 {[%emt 0:00:13]} Be7 {[%emt 0:00:07]} 7. Qg4 {[%emt 0:00:16]} g6 {[%emt 0:00:20]} 8. Qe2 {[%emt 0:00:16]} d6 {[%emt 0:00:51]} 9. a4 {[%emt 0:01:22]} b6 {[%emt 0:03:52]} 10. O-O {[%emt 0:01:06]} Nd7 {[%emt 0:00:55]} 11. Na3 {[%emt 0:03:10]} Bb7 {[%emt 0:01:29]} 12. Nc4 {[%emt 0:06:15]} Qc7 {[%emt 0:01:11]} 13. a5 {[%emt 0:25:29]} b5 {[%emt 0:00:54]} 14. Nb6 {[%emt 0:00:09]} Rd8 {[%emt 0:09:25]} 15. Nxd7 {[%emt 0:13:44]} Qxd7 {[%emt 0:02:32]} 16. c4 {[%emt 0:02:02]} bxc4 {[%emt 0:02:27]} 17. Bxc4 {[%emt 0:00:10]} Ra8 {[%emt 0:02:05]} 18. Rd1 {[%emt 0:10:13]} Qc6 {[%emt 0:13:49]} 19. f3 {[%emt 0:01:02]} Nf6 {[%emt 0:11:38]} 20. Bh6 {[%emt 0:01:29]} Qc7 {[%emt 0:04:16]} 21. Rac1 {[%emt 0:03:07]} Qb8 {[%emt 0:19:46]} 22. Nc5 {[%emt 0:12:58]} Qa7 {[%emt 0:13:35]} 23. Bb5+ {[%emt 0:00:09]} axb5 {[%emt 0:04:14]} 24. Qxb5+ {[%emt 0:00:19]} Bc6 {[%emt 0:00:17]} 25. Qxc6+ {[%emt 0:00:17]} Nd7 {[%emt 0:00:08]} 26. Kh1 {[%emt 0:08:50]} Rb8 {[%emt 0:00:34]} 27. Na6 {[%emt 0:01:03]} Rb7 {[%emt 0:01:48]} 28. Nc7+ {[%emt 0:01:02]} Rxc7 {[%emt 0:00:27]} 29. Qxc7 {[%emt 0:00:04]} Qxc7 {[%emt 0:00:40]} 30. Rxc7 {[%emt 0:00:05]} Bd8 {[%emt 0:00:04]} 31. Rc8 {[%emt 0:00:50]} Ke7 {[%emt 0:00:11]} 32. a6 {[%emt 0:00:19]} Nb6 {[%emt 0:00:34]} 33. a7 {[%emt 0:00:12]} 1-0

[Event "7th Summer Cup 2024"]
[Site "Rhodes"]
[Date "2024.06.27"]
[Round "6.6"]
[White "Hofstadler, Mario"]
[Black "Seres, Bela"]
[Result "1-0"]
[ECO "E68"]
[WhiteElo "2103"]
[BlackElo "2126"]
[Annotator "RC"]
[PlyCount "91"]
[EventDate "2024.06.21"]
[EventType "swiss"]
[EventCountry "GRE"]
[SourceTitle "playchess.com"]
[Source "ChessBase"]
[SourceQuality "1"]
[TimeControl "40/5400+30:900+30"]

1. d4 {[%emt 0:00:51]} g6 {[%emt 0:02:43]} 2. Nf3 {[%emt 0:02:08]} Bg7 {[%emt 0:00:10]} 3. g3 {[%emt 0:05:05]} d6 {[%emt 0:11:26]} 4. Bg2 {[%emt 0:01:09]} Nd7 {[%emt 0:01:01]} 5. O-O {[%emt 0:11:35]} Ngf6 {[%emt 0:05:40]} 6. c4 {[%emt 0:08:47]} O-O {[%emt 0:03:56]} 7. Nc3 {[%emt 0:00:52]} e5 {[%emt 0:02:04]} 8. e4 {[%emt 0:01:02]} exd4 {[%emt 0:02:26]} 9. Nxd4 {[%emt 0:00:08]} Nc5 {[%emt 0:00:54]} 10. h3 {[%emt 0:02:05]} Re8 {[%emt 0:03:12]} 11. Re1 {[%emt 0:02:38]} a5 {[%emt 0:09:23]} 12. b3 {[%emt 0:07:46]} Bd7 {[%emt 0:04:30]} 13. Bf4 {[%emt 0:11:51]} Nh5 {[%emt 0:16:53]} 14. Be3 {[%emt 0:01:41]} Ne6 {[%emt 0:00:29]} 15. Nde2 {[%emt 0:04:58]} Bc6 {[%emt 0:05:08]} 16. Qc2 {[%emt 0:03:54]} g5 {[%emt 0:04:07]} 17. Rad1 {[%emt 0:00:59]} Qf6 {[%emt 0:03:04]} 18. Nd5 {[%emt 0:10:28]} Qg6 {[%emt 0:00:44]} 19. Qd2 {[%emt 0:02:12]} Nf6 {[%emt 0:02:08]} 20. Nec3 {[%emt 0:01:28]} Rac8 {[%emt 0:15:12]} 21. Nxf6+ {[%emt 0:03:24]} Bxf6 {[%emt 0:02:05]} 22. Nd5 {[%emt 0:01:34]} Bxd5 {[%emt 0:01:12]} 23. exd5 {[%emt 0:03:09]} Nc5 {[%emt 0:00:51]} 24. Qxa5 {[%emt 0:01:16]} Qg7 {[%emt 0:01:27]} 25. Bxc5 {[%emt 0:04:16]} Rxe1+ {[%emt 0:00:43]} 26. Rxe1 {[%emt 0:01:18]} dxc5 {[%emt 0:00:57]} 27. Qxc5 {[%emt 0:00:40]} Bc3 {[%emt 0:00:51]} 28. Re2 {[%emt 0:00:38]} Be5 {[%emt 0:00:21]} 29. Qb5 {[%emt 0:01:32]} b6 {[%emt 0:00:26]} 30. Be4 {[%emt 0:01:05]} Qf6 {[%emt 0:00:48]} 31. Qd7 {[%emt 0:01:16]} Rd8 {[%emt 0:00:34]} 32. Qg4 {[%emt 0:00:07]} h6 {[%emt 0:00:27]} 33. Bc2 {[%emt 0:00:33]} Qg7 {[%emt 0:00:37]} 34. Kg2 {[%emt 0:00:41]} Bd6 {[%emt 0:00:17]} 35. a4 {[%emt 0:01:26]} Kf8 {[%emt 0:00:03]} 36. Qe4 {[%emt 0:01:53]} Qf6 {[%emt 0:00:12]} 37. Re3 {[%emt 0:00:30]} Bc5 {[%emt 0:00:40]} 38. Rf3 {[%emt 0:00:15]} Qg7 {[%emt 0:00:01]} 39. Qg4 {[%emt 0:01:38]} Re8 {[%emt 0:00:31]} 40. Bf5 {[%emt 0:00:00]} Ke7 {[%emt 0:00:00]} 41. Bc8 {[%emt 0:03:19]} Rd8 {[%emt 0:03:02]} 42. Qe4+ {[%emt 0:00:25]} Kd6 {[%emt 0:02:12]} 43. Bg4 {[%emt 0:00:26]} Bd4 {[%emt 0:00:28]} 44. Bh5 {[%emt 0:02:06]} Rd7 {[%emt 0:00:20]} 45. Bxf7 {[%emt 0:00:45]} Qe5 {[%emt 0:01:58]} 46. Qg6+ {[%emt 0:00:11]} 1-0

[Event "7th Summer Cup 2024"]
[Site "Rhodes"]
[Date "2024.06.27"]
[Round "6.7"]
[White "Szalay-Ocsak, Bank"]
[Black "Ghaith Saeed Alnuaimi"]
[Result "1-0"]
[ECO "B15"]
[WhiteElo "2279"]
[BlackElo "1799"]
[Annotator "RC"]
[PlyCount "121"]
[EventDate "2024.06.21"]
[EventType "swiss"]
[EventCountry "GRE"]
[SourceTitle "playchess.com"]
[Source "ChessBase"]
[SourceQuality "1"]
[TimeControl "40/5400+30:900+30"]

1. e4 {[%emt 0:03:51]} c6 {[%emt 0:05:16]} 2. d4 {[%emt 0:00:15]} d5 {[%emt 0:00:08]} 3. Nc3 {[%emt 0:00:15]} dxe4 {[%emt 0:00:31]} 4. Nxe4 {[%emt 0:00:08]} Nf6 {[%emt 0:00:04]} 5. Nxf6+ {[%emt 0:00:21]} exf6 {[%emt 0:00:07]} 6. c3 {[%emt 0:00:10]} Bd6 {[%emt 0:00:05]} 7. Bd3 {[%emt 0:00:20]} O-O {[%emt 0:00:27]} 8. Qc2 {[%emt 0:00:07]} Re8+ {[%emt 0:00:47]} 9. Ne2 {[%emt 0:00:14]} h5 {[%emt 0:06:20]} 10. O-O {[%emt 0:02:27]} h4 {[%emt 0:00:03]} 11. h3 {[%emt 0:00:07]} Nd7 {[%emt 0:00:44]} 12. Bd2 {[%emt 0:03:33]} Nf8 {[%emt 0:00:05]} 13. Rae1 {[%emt 0:05:46]} Ne6 {[%emt 0:14:36]} 14. f4 {[%emt 0:03:03]} Bd7 {[%emt 0:00:29]} 15. Kh1 {[%emt 0:11:38]} Rc8 {[%emt 0:14:30]} 16. c4 {[%emt 0:05:59]} Bb8 {[%emt 0:06:06]} 17. Be3 {[%emt 0:16:19]} Qa5 {[%emt 0:05:07]} 18. Bh7+ {[%emt 0:08:09]} Kh8 {[%emt 0:02:30]} 19. Qf5 {[%emt 0:00:47]} Qxf5 {[%emt 0:03:25]} 20. Bxf5 {[%emt 0:00:01]} g6 {[%emt 0:00:29]} 21. Bc2 {[%emt 0:00:47]} Kg7 {[%emt 0:01:40]} 22. Bd2 {[%emt 0:05:07]} Rcd8 {[%emt 0:02:29]} 23. f5 {[%emt 0:04:34]} Ng5 {[%emt 0:06:03]} 24. fxg6 {[%emt 0:02:12]} fxg6 {[%emt 0:00:10]} 25. Nf4 {[%emt 0:00:34]} Bc8 {[%emt 0:18:23]} 26. Nxg6 {[%emt 0:10:23]} Bg3 {[%emt 0:01:01]} 27. Re7+ {[%emt 0:02:57]} Rxe7 {[%emt 0:00:37]} 28. Nxe7 {[%emt 0:00:02]} Be6 {[%emt 0:01:28]} 29. d5 {[%emt 0:08:21]} cxd5 {[%emt 0:00:21]} 30. cxd5 {[%emt 0:00:06]} Bxd5 {[%emt 0:03:01]} 31. Bxg5 {[%emt 0:01:33]} fxg5 {[%emt 0:02:18]} 32. Rd1 {[%emt 0:00:04]} Be4 {[%emt 0:02:56]} 33. Rxd8 {[%emt 0:00:06]} Bxc2 {[%emt 0:00:05]} 34. Rd7 {[%emt 0:02:10]} Be4 {[%emt 0:02:41]} 35. Nf5+ {[%emt 0:00:20]} Kf6 {[%emt 0:00:07]} 36. Nxg3 {[%emt 0:00:14]} hxg3 {[%emt 0:00:02]} 37. Kg1 {[%emt 0:01:07]} a6 {[%emt 0:00:55]} 38. Rc7 {[%emt 0:00:49]} Bc6 {[%emt 0:00:22]} 39. Rc8 {[%emt 0:02:01]} Kf7 {[%emt 0:00:11]} 40. a4 {[%emt 0:00:00]} Ke6 {[%emt 0:00:00]} 41. b3 {[%emt 0:05:59]} Ke5 {[%emt 0:00:53]} 42. Rg8 {[%emt 0:00:23]} Kf5 {[%emt 0:00:15]} 43. Rf8+ {[%emt 0:00:52]} Ke5 {[%emt 0:00:09]} 44. Rg8 {[%emt 0:01:42]} Kf5 {[%emt 0:00:05]} 45. a5 {[%emt 0:00:04]} Kf4 {[%emt 0:01:08]} 46. Rf8+ {[%emt 0:00:36]} Ke5 {[%emt 0:00:07]} 47. Rf3 {[%emt 0:05:43]} Bxf3 {[%emt 0:02:56]} 48. gxf3 {[%emt 0:00:15]} Kd4 {[%emt 0:01:04]} 49. Kg2 {[%emt 0:00:13]} Kc3 {[%emt 0:01:13]} 50. Kxg3 {[%emt 0:00:10]} Kxb3 {[%emt 0:00:04]} 51. f4 {[%emt 0:00:23]} gxf4+ {[%emt 0:00:07]} 52. Kxf4 {[%emt 0:00:05]} Kb4 {[%emt 0:00:25]} 53. h4 {[%emt 0:00:11]} Kxa5 {[%emt 0:00:06]} 54. h5 {[%emt 0:00:11]} b5 {[%emt 0:00:12]} 55. h6 {[%emt 0:00:12]} b4 {[%emt 0:00:18]} 56. h7 {[%emt 0:00:05]} b3 {[%emt 0:00:32]} 57. h8=Q {[%emt 0:00:06]} Kb4 {[%emt 0:00:04]} 58. Qd4+ {[%emt 0:01:00]} Ka3 {[%emt 0:00:26]} 59. Qa1+ {[%emt 0:00:04]} Kb4 {[%emt 0:00:05]} 60. Qxa6 {[%emt 0:00:08]} b2 {[%emt 0:00:22]} 61. Qa2 {[%emt 0:00:15]} 1-0

[Event "7th Summer Cup 2024"]
[Site "Rhodes"]
[Date "2024.06.27"]
[Round "6.8"]
[White "Gelle, Istvan"]
[Black "Al Maamari, Wafia Darwish"]
[Result "1-0"]
[ECO "D02"]
[WhiteElo "2163"]
[BlackElo "1933"]
[Annotator "RC"]
[PlyCount "73"]
[EventDate "2024.06.21"]
[EventType "swiss"]
[EventCountry "GRE"]
[SourceTitle "playchess.com"]
[Source "ChessBase"]
[SourceQuality "1"]
[TimeControl "40/5400+30:900+30"]

1. d4 {[%emt 0:00:04]} d5 {[%emt 0:00:07]} 2. Nf3 {[%emt 0:00:10]} Nf6 {[%emt 0:00:53]} 3. Bf4 {[%emt 1:31:46]} c5 {[%emt 0:00:46]} 4. e3 {[%emt 0:00:00]} Nc6 {[%emt 0:03:02]} 5. Nbd2 {[%emt 0:01:00]} Bf5 {[%emt 0:02:07]} 6. dxc5 {[%emt 0:00:30]} Qa5 {[%emt 0:04:30]} 7. Nd4 {[%emt 0:00:30]} Bg4 {[%emt 0:08:32]} 8. f3 {[%emt 0:00:30]} Bd7 {[%emt 0:02:28]} 9. N4b3 {[%emt 0:00:30]} Qd8 {[%emt 1:12:35]} 10. c4 {[%emt 0:00:30]} a5 {[%emt 0:00:30]} 11. Bg5 {[%emt 0:00:30]} e6 {[%emt 0:00:30]} 12. cxd5 {[%emt 0:00:30]} exd5 {[%emt 0:00:00]} 13. Rc1 {[%emt 0:00:00]} Qe7 {[%emt 0:01:00]} 14. Bb5 {[%emt 0:01:00]} h6 {[%emt 0:00:00]} 15. Bxf6 {[%emt 0:00:00]} Qxe3+ {[%emt 0:01:00]} 16. Be2 {[%emt 0:00:00]} gxf6 {[%emt 0:00:00]} 17. Rc3 {[%emt 0:00:00]} Qg5 {[%emt 0:01:00]} 18. O-O {[%emt 0:00:00]} Rg8 {[%emt 0:00:00]} 19. Rf2 {[%emt 0:00:00]} a4 {[%emt 0:00:00]} 20. Nc1 {[%emt 0:00:00]} Ra5 {[%emt 0:00:00]} 21. f4 {[%emt 0:00:00]} Qg7 {[%emt 0:00:00]} 22. Nd3 {[%emt 0:04:00]} Bf5 {[%emt 0:00:00]} 23. b4 {[%emt 0:00:00]} axb3 {[%emt 0:00:00]} 24. Nxb3 {[%emt 0:00:00]} Ra8 {[%emt 0:03:30]} 25. Ne1 {[%emt 0:00:00]} Be4 {[%emt 0:00:30]} 26. Bb5 {[%emt 0:00:00]} Kd8 {[%emt 0:00:30]} 27. Bxc6 {[%emt 0:00:00]} bxc6 {[%emt 0:00:00]} 28. Nd4 {[%emt 0:00:00]} f5 {[%emt 0:00:00]} 29. Nxc6+ {[%emt 0:00:00]} Kc7 {[%emt 0:01:30]} 30. Ne5 {[%emt 0:00:00]} Ra5 {[%emt 0:00:00]} 31. Qd4 {[%emt 0:00:00]} f6 {[%emt 0:00:00]} 32. Qb4 {[%emt 0:00:00]} Ra6 {[%emt 0:00:00]} 33. Rb2 {[%emt 0:00:00]} fxe5 {[%emt 0:00:00]} 34. Qb8+ {[%emt 0:00:00]} Kd7 {[%emt 0:00:39]} 35. Rb7+ {[%emt 0:00:00]} Ke6 {[%emt 0:00:27]} 36. Qc8+ {[%emt 0:00:00]} Kf6 {[%emt 0:00:26]} 37. Rxg7 {[%emt 0:00:00]} 1-0